fUSD/lending_fUSD_20240319
["ID","MTS","AMOUNT","RATE_DAILY","PERIOD"]
[319586568,1710883869472,-151.0,0.0003041,7]
[319586569,1710883869481,-500.0,0.0003041,2]
[319586570,1710883869490,-151.0,0.0003041,7]
[319586571,1710883869500,-500.0,0.0003041,2]
[319586572,1710883869511,-5213.56,0.0003041,2]
[319586573,1710883869521,-1738.76,0.0003041,2]
[319586574,1710883869530,-151.0,0.0003041,7]
[319586575,1710883869539,-3839.08,0.0003041,2]
[319586576,1710883869548,-151.0,0.0003041,7]
[319586577,1710883869558,-3525.85,0.0003041,2]
[319586578,1710883869567,-151.0,0.0003041,7]
[319586579,1710883869577,-15088.23,0.0003041,2]
[319586580,1710883869586,-10000.0,0.0003041,7]
[319586581,1710883869595,-10000.0,0.0003041,7]
[319586582,1710883869605,-15203.85,0.0003041,2]
[319586583,1710883869614,-10000.0,0.0003041,7]
[319586584,1710883869627,-2988.25,0.0003041,2]
[319586585,1710883869638,-732.9,0.0003041,2]
[319586586,1710883869647,-1562.83,0.0003041,2]
[319586587,1710883869658,-10000.0,0.0003041,7]
[319586588,1710883869667,-8565.47,0.0003041,2]
[319586589,1710883869677,-10000.0,0.0003041,7]
[319586590,1710883869686,-10000.0,0.0003041,7]
[319586591,1710883869696,-500.0,0.0003041,2]
[319586592,1710883869711,-710.524031,0.0003041,7]
[319586593,1710883869721,-579.17,0.0003041,2]
[319586594,1710883869730,-710.524031,0.0003041,7]
[319586595,1710883869739,-6726.59,0.0003041,2]
[319586596,1710883869749,-1618.7,0.0003041,2]
[319586597,1710883869863,-710.524031,0.0003041,7]
[319586598,1710883869873,-27171.19,0.0003041,2]
[319586599,1710883869883,-500.0,0.0003041,2]
[319586600,1710883869892,-710.524031,0.0003041,7]
[319586601,1710883869901,-710.524031,0.0003041,7]
[319586602,1710883869911,-710.524031,0.0003041,7]
[319586603,1710883869920,-1155.93,0.0003041,2]
[319586604,1710883869929,-8385.96,0.0003041,2]
[319586605,1710883869939,-3340.38,0.0003041,2]
[319586606,1710883869948,-1368.17,0.0003041,2]
[319586607,1710883869958,-500.0,0.0003041,2]
[319586608,1710883869967,-500.0,0.0003041,2]
[319586609,1710883869976,-552.59,0.0003041,2]
[319586610,1710883869986,-500.0,0.0003041,2]
[319586611,1710883869996,-500.0,0.0003041,2]
[319586612,1710883870005,-15669.37,0.0003041,2]
[319586613,1710883870020,-151.0,0.0003041,7]
[319586614,1710883870029,-151.0,0.0003041,7]
[319586615,1710883870038,-11650.07,0.0003041,2]
[319586616,1710883870047,-151.0,0.0003041,7]
[319586617,1710883870057,-42879.44,0.0003041,2]
[319586618,1710883870067,-500.0,0.0003041,2]
[319586619,1710883870077,-197.669823,0.0003041,7]
[319586620,1710883870086,-197.669823,0.0003041,7]
[319586621,1710883870096,-8051.45,0.0003041,2]
[319586622,1710883870107,-4699.27,0.0003041,2]
[319586623,1710883870119,-197.669823,0.0003041,7]
[319586624,1710883870132,-500.0,0.0003041,2]
[319586625,1710883870142,-197.669823,0.0003041,7]
[319586626,1710883870151,-197.669823,0.0003041,7]
[319586627,1710883870162,-567.22,0.0003041,2]
[319586628,1710883870174,-197.669823,0.0003041,7]
[319586629,1710883870184,-537.84,0.0003041,2]
[319586630,1710883870195,-1100.67,0.0003041,2]
[319586631,1710883870205,-3604.5,0.0003041,2]
[319586632,1710883870215,-500.0,0.0003041,2]
[319586633,1710883870225,-2094.61,0.0003041,2]
[319586634,1710883870236,-830.55,0.0003041,2]
[319586635,1710883870246,-4631.22,0.0003041,2]
[319586636,1710883870256,-62217.7,0.0003041,2]
[319586637,1710883870270,-10729.57,0.0003041,2]
[319586638,1710883870280,-27416.23,0.0003041,2]
[319586639,1710883870290,-543.94,0.0003041,2]
[319586640,1710883870299,-4331.12,0.0003041,2]
[319586641,1710883870308,-7584.08,0.0003041,2]
[319586642,1710883870318,-5369.24,0.0003041,2]
[319586643,1710883870328,-500.0,0.0003041,2]
[319586644,1710883870337,-1227.45,0.0003041,2]
[319586645,1710883870347,-1532.97,0.0003041,2]
[319586646,1710883870356,-500.0,0.0003041,2]
[319586647,1710883870365,-3357.98,0.0003041,2]
[319586648,1710883870375,-6187.66,0.0003041,2]
[319586649,1710883870384,-500.0,0.0003041,2]
[319586650,1710883870394,-613.33,0.0003041,2]
[319586651,1710883870403,-7088.3,0.0003041,2]
[319586652,1710883870412,-8882.1,0.0003041,2]
[319586653,1710883870421,-500.0,0.0003041,2]
[319586654,1710883870431,-3796.41,0.0003041,2]
[319586655,1710883870440,-500.0,0.0003041,2]
[319586656,1710883870449,-500.0,0.0003041,2]
[319586657,1710883870457,-1290.92,0.0003041,2]
[319586658,1710883870466,-607.31,0.0003041,2]
[319586659,1710883870475,-1917.48,0.0003041,2]
[319586660,1710883870485,-1875.01,0.0003041,2]
[319586661,1710883870494,-1016.18,0.0003041,2]
[319586662,1710883870503,-16905.48,0.0003041,2]
[319586663,1710883870515,-3172.03,0.0003041,2]
[319586664,1710883870524,-35692.07,0.0003041,2]
[319586665,1710883870534,-500.0,0.0003041,2]
[319586666,1710883870543,-1297.28,0.0003041,2]
[319586667,1710883870552,-1142.27,0.0003041,2]
[319586668,1710883870561,-855.8,0.0003041,2]
[319586669,1710883870571,-500.0,0.0003041,2]
[319586670,1710883870580,-913.73,0.0003041,2]
[319586671,1710883870590,-2234.13,0.0003041,2]
[319586672,1710883870599,-1996.89,0.0003041,2]
[319586673,1710883870608,-17286.9,0.0003041,2]
[319586674,1710883870618,-866.16,0.0003041,2]
[319586675,1710883870627,-4688.61,0.0003041,2]
[319586676,1710883870636,-500.0,0.0003041,2]
[319586677,1710883870647,-500.0,0.0003041,2]
[319586678,1710883870656,-500.0,0.0003041,2]
[319586679,1710883870669,-500.0,0.0003041,2]
[319586680,1710883870678,-768.83,0.0003041,2]
[319586681,1710883870688,-566.2,0.0003041,2]
[319586682,1710883870697,-2249.09,0.0003041,2]
[319586683,1710883870706,-500.0,0.0003041,2]
[319586684,1710883870715,-12794.23,0.0003041,2]
[319586685,1710883870725,-514.47,0.0003041,2]
[319586686,1710883870734,-965.87,0.0003041,2]
[319586687,1710883870743,-721.54,0.0003041,2]
[319586688,1710883870752,-5976.67,0.0003041,2]
[319586689,1710883870762,-629.81062903,0.0003041,2]
[319586690,1710883870771,-500.0,0.0003041,2]
[319586691,1710883870781,-2375.0,0.0003041,2]
[319586692,1710883870790,-7791.7,0.0003041,2]
[319586693,1710883870799,-5055.25,0.0003041,2]
[319586694,1710883870808,-151.0,0.00030414,7]
[319586695,1710883870818,-151.0,0.00030414,7]
[319586696,1710883870828,-151.0,0.00030424,7]
[319586697,1710883870837,-151.0,0.00030424,7]
[319586698,1710883870846,-151.0,0.00030424,7]
[319586699,1710883870856,-6447.0755401,0.00030435,2]
[319586700,1710883870865,-155.33,0.00030445,2]
[319586701,1710883870874,-346.63721221,0.00030447,17]
[319586702,1710883870883,-190.63,0.00030482,2]
[319586703,1710883870893,-927.4735198,0.00030522,2]
[319586704,1710883870903,-151.0,0.00030524,7]
[319586705,1710883870912,-151.0,0.00030524,7]
[319586706,1710883870921,-151.0,0.00030524,7]
[319586707,1710883870930,-151.0,0.00030524,7]
[319586708,1710883870940,-151.0,0.00030524,7]
[319586709,1710883870949,-175.282758,0.00030524,7]
[319586710,1710883870958,-294.136098,0.00030524,7]
[319586711,1710883870967,-294.136098,0.00030524,7]
[319586712,1710883870977,-151.0,0.00030524,7]
[319586713,1710883870986,-151.0,0.00030524,7]
[319586714,1710883870996,-151.0,0.00030524,7]
[319586715,1710883871006,-151.0,0.00030524,7]
[319586716,1710883871019,-151.0,0.00030524,7]
[319586717,1710883871029,-10000.0,0.00030524,7]
[319586718,1710883871038,-10000.0,0.00030524,7]
[319586719,1710883871047,-710.524031,0.00030524,7]
[319586720,1710883871057,-710.524031,0.00030524,7]
[319586721,1710883871067,-151.0,0.00030524,7]
[319586722,1710883871076,-197.669823,0.00030524,7]
[319586723,1710883871085,-197.669823,0.00030524,7]
[319586724,1710883871095,-3069.0,0.00030524,2]
[319586725,1710883871107,-413.0,0.00030524,2]
[319586726,1710883871116,-1136.0,0.00030524,2]
[319586727,1710883871126,-930.702,0.00030524,2]
[319586728,1710883871138,-209.0,0.00030524,2]
[319586729,1710883871149,-1459.0,0.00030524,2]
[319586730,1710883871159,-2419.0,0.00030524,2]
[319586731,1710883871168,-150.0,0.00030524,2]
[319586732,1710883871181,-213.0,0.00030524,2]
[319586733,1710883871190,-1623.0,0.00030524,2]
[319586734,1710883871201,-1379.0,0.00030524,2]
[319586735,1710883871213,-2561.0,0.00030524,2]
[319586736,1710883871223,-5670.0,0.00030524,2]
[319586737,1710883871233,-4763.0,0.00030524,2]
[319586738,1710883871243,-2445.0,0.00030524,2]
[319586739,1710883871253,-959.0,0.00030524,2]
[319586740,1710883871264,-42890.0,0.00030524,2]
[319586741,1710883871274,-1226.0,0.00030524,2]
[319586742,1710883871287,-457.0,0.00030524,2]
[319586743,1710883871298,-548.604,0.00030524,2]
[319586744,1710883871308,-1044.0,0.00030524,2]
[319586745,1710883871317,-1250.0,0.00030524,2]
[319586746,1710883871327,-346.63721221,0.00030584,18]
[319586747,1710883871338,-234.05639917,0.00030584,2]
[319586748,1710883871347,-6447.0755401,0.00030634,2]
[319586749,1710883871357,-222.032006,0.00030662,3]
[319586750,1710883871367,-222.032006,0.00030662,4]
[319586751,1710883871377,-222.032006,0.00030672,4]
[319586752,1710883871387,-222.032006,0.00030672,3]
[319586753,1710883871397,-222.032006,0.00030682,3]
[319586754,1710883871406,-222.032006,0.00030682,4]
[319586755,1710883871416,-150.0,0.00030683,2]
[319586756,1710883871426,-150.0,0.00030683,2]
[319586757,1710883871435,-500.0,0.00030684,2]
[319586758,1710883871445,-500.0,0.00030684,2]
[319586759,1710883871454,-500.0,0.00030684,2]
[319586760,1710883871463,-163.37691772,0.00030684,2]
[319586761,1710883871472,-500.0,0.00030684,2]
[319586762,1710883871482,-500.0,0.00030684,2]
[319586763,1710883871491,-500.0,0.00030684,2]
[319586764,1710883871501,-500.0,0.00030684,2]
[319586765,1710883871511,-210.8141036,0.00030684,2]
[319586766,1710883871520,-541.15,0.00030684,2]
[319586767,1710883871529,-500.0,0.00030684,2]
[319586768,1710883871538,-500.0,0.00030684,2]
[319586769,1710883871548,-500.0,0.00030684,2]
[319586770,1710883871557,-782.55,0.00030684,2]
[319586771,1710883871567,-500.0,0.00030684,2]
[319586772,1710883871576,-1175.0,0.00030684,2]
[319586773,1710883871586,-813.24,0.00030684,2]
[319586774,1710883871595,-280.47536273,0.00030684,2]
[319586775,1710883871604,-569.24,0.00030684,2]
[319586776,1710883871613,-798.81,0.00030684,2]
[319586777,1710883871623,-500.0,0.00030684,2]
[319586778,1710883871633,-500.0,0.00030684,2]
[319586779,1710883871642,-823.89,0.00030684,2]
[319586780,1710883871651,-500.0,0.00030684,2]
[319586781,1710883871660,-590.39,0.00030684,2]
[319586782,1710883871670,-621.72,0.00030684,2]
[319586783,1710883871679,-500.0,0.00030684,2]
[319586784,1710883871688,-500.0,0.00030684,2]
[319586785,1710883871697,-500.0,0.00030684,2]
[319586786,1710883871707,-500.0,0.00030684,2]
[319586787,1710883871717,-500.0,0.00030684,2]
[319586788,1710883871727,-500.0,0.00030684,2]
[319586789,1710883871737,-500.0,0.00030684,2]
[319586790,1710883871746,-526.28791723,0.00030684,2]
[319586791,1710883871755,-500.0,0.00030684,2]
[319586792,1710883871766,-500.0,0.00030684,2]
[319586793,1710883871775,-500.0,0.00030684,2]
[319586794,1710883871784,-500.0,0.00030684,2]
[319586795,1710883871794,-500.0,0.00030684,2]
[319586796,1710883871803,-500.0,0.00030684,2]
[319586797,1710883871812,-500.0,0.00030684,2]
[319586798,1710883871822,-750.91,0.00030684,2]
[319586799,1710883871831,-196.33066553,0.00030684,2]
[319586800,1710883871841,-827.98,0.00030684,2]
[319586801,1710883871850,-500.0,0.00030684,2]
[319586802,1710883871860,-562.59,0.00030684,2]
[319586803,1710883871870,-998.0,0.00030684,2]
[319586804,1710883871879,-500.0,0.00030684,2]
[319586805,1710883871889,-570.65,0.00030684,2]
[319586806,1710883871898,-500.0,0.00030684,2]
[319586807,1710883871907,-500.0,0.00030684,2]
[319586808,1710883871916,-500.0,0.00030684,2]
[319586809,1710883871926,-500.0,0.00030684,2]
[319586810,1710883871935,-500.0,0.00030684,2]
[319586811,1710883871944,-483.16441894,0.00030684,2]
[319586812,1710883871953,-500.0,0.00030684,2]
[319586813,1710883871963,-1839.1,0.00030684,2]
[319586814,1710883871972,-500.0,0.00030684,2]
[319586815,1710883871981,-500.0,0.00030684,2]
[319586816,1710883871990,-500.0,0.00030684,2]
[319586817,1710883872000,-500.0,0.00030684,2]
[319586818,1710883872010,-500.0,0.00030684,2]
[319586819,1710883872019,-500.0,0.00030684,2]
[319586820,1710883872028,-1032.08,0.00030684,2]
[319586821,1710883872038,-729.17,0.00030684,2]
[319586822,1710883872047,-500.0,0.00030684,2]
[319586823,1710883872056,-1913.06,0.00030684,2]
[319586824,1710883872065,-500.0,0.00030684,2]
[319586825,1710883872074,-500.0,0.00030684,2]
[319586826,1710883872085,-500.0,0.00030684,2]
[319586827,1710883872094,-1372.24,0.00030684,2]
[319586828,1710883872104,-500.0,0.00030684,2]
[319586829,1710883872113,-290.66194944,0.00030684,2]
[319586830,1710883872122,-711.63,0.00030684,2]
[319586831,1710883872134,-500.0,0.00030684,2]
[319586832,1710883872143,-1163.5,0.00030684,2]
[319586833,1710883872154,-500.0,0.00030684,2]
[319586834,1710883872163,-500.0,0.00030684,2]
[319586835,1710883872172,-500.0,0.00030684,2]
[319586836,1710883872182,-500.0,0.00030684,2]
[319586837,1710883872191,-500.0,0.00030684,2]
[319586838,1710883872201,-500.0,0.00030684,2]
[319586839,1710883872211,-500.0,0.00030684,2]
[319586840,1710883872220,-500.0,0.00030684,2]
[319586841,1710883872229,-652.32,0.00030684,2]
[319586842,1710883872238,-500.0,0.00030684,2]
[319586843,1710883872248,-500.0,0.00030684,2]
[319586844,1710883872258,-500.0,0.00030684,2]
[319586845,1710883872268,-500.0,0.00030684,2]
[319586846,1710883872278,-500.0,0.00030684,2]
[319586847,1710883872287,-500.0,0.00030684,2]
[319586848,1710883872296,-500.0,0.00030684,2]
[319586849,1710883872305,-910.23,0.00030684,2]
[319586850,1710883872314,-500.0,0.00030684,2]
[319586851,1710883872323,-500.0,0.00030684,2]
[319586852,1710883872332,-500.0,0.00030684,2]
[319586853,1710883872342,-740.28,0.00030684,2]
[319586854,1710883872351,-500.0,0.00030684,2]
[319586855,1710883872360,-624.91,0.00030684,2]
[319586856,1710883872370,-968.04,0.00030684,2]
[319586857,1710883872379,-383.01216852,0.00030684,2]
[319586858,1710883872388,-500.0,0.00030684,2]
[319586859,1710883872397,-500.0,0.00030684,2]
[319586860,1710883872407,-500.0,0.00030684,2]
[319586861,1710883872416,-500.0,0.00030684,2]
[319586862,1710883872426,-832.42,0.00030684,2]
[319586863,1710883872436,-500.0,0.00030684,2]
[319586864,1710883872445,-500.0,0.00030684,2]
[319586865,1710883872454,-500.0,0.00030684,2]
[319586866,1710883872464,-500.0,0.00030684,2]
[319586867,1710883872473,-500.0,0.00030684,2]
[319586868,1710883872482,-510.18,0.00030684,2]
[319586869,1710883872491,-500.0,0.00030684,2]
[319586870,1710883872501,-500.0,0.00030684,2]
[319586871,1710883872512,-496.01722937,0.00030684,2]
[319586872,1710883872521,-500.0,0.00030684,2]
[319586873,1710883872530,-1150.05,0.00030684,2]
[319586874,1710883872538,-500.0,0.00030684,2]
[319586875,1710883872547,-608.08,0.00030684,2]
[319586876,1710883872557,-505.97,0.00030684,2]
[319586877,1710883872566,-500.0,0.00030684,2]
[319586878,1710883872575,-1660.24,0.00030684,2]
[319586879,1710883872584,-626.77,0.00030684,2]
[319586880,1710883872594,-500.0,0.00030684,2]
[319586881,1710883872602,-1083.97,0.00030684,2]
[319586882,1710883872612,-500.0,0.00030684,2]
[319586883,1710883872621,-500.0,0.00030684,2]
[319586884,1710883872630,-573.58,0.00030684,2]
[319586885,1710883872639,-500.0,0.00030684,2]
[319586886,1710883872648,-500.0,0.00030684,2]
[319586887,1710883872657,-713.26,0.00030684,2]
[319586888,1710883872666,-524.58,0.00030684,2]
[319586889,1710883872676,-1659.61,0.00030684,2]
[319586890,1710883872685,-786.87,0.00030684,2]
[319586891,1710883872695,-987.6,0.00030684,2]
[319586892,1710883872704,-562.22,0.00030684,2]
[319586893,1710883872714,-884.6,0.00030684,2]
[319586894,1710883872723,-500.0,0.00030684,2]
[319586895,1710883872733,-509.12,0.00030684,2]
[319586896,1710883872742,-500.0,0.00030684,2]
[319586897,1710883872751,-1565.75,0.00030684,2]
[319586898,1710883872762,-704.58,0.00030684,2]
[319586899,1710883872772,-500.0,0.00030684,2]
[319586900,1710883872781,-500.0,0.00030684,2]
[319586901,1710883872790,-500.0,0.00030684,2]
[319586902,1710883872800,-500.0,0.00030684,2]
[319586903,1710883872809,-500.0,0.00030684,2]
[319586904,1710883872819,-500.0,0.00030684,2]
[319586905,1710883872828,-500.0,0.00030684,2]
[319586906,1710883872837,-630.22603786,0.00030684,2]
[319586907,1710883872846,-1177.64,0.00030684,2]
[319586908,1710883872856,-1298.95,0.00030684,2]
[319586909,1710883872866,-500.0,0.00030684,2]
[319586910,1710883872876,-766.46,0.00030684,2]
[319586911,1710883872885,-500.0,0.00030684,2]
[319586912,1710883872894,-500.0,0.00030684,2]
[319586913,1710883872904,-2115.61,0.00030684,2]
[319586914,1710883872914,-500.0,0.00030684,2]
[319586915,1710883872924,-1208.26,0.00030684,2]
[319586916,1710883872934,-500.0,0.00030684,2]
[319586917,1710883872943,-1208.9,0.00030684,2]
[319586918,1710883872953,-766.73,0.00030684,2]
[319586919,1710883872963,-723.63,0.00030684,2]
[319586920,1710883872972,-710.55,0.00030684,2]
[319586921,1710883872982,-755.48,0.00030684,2]
[319586922,1710883872991,-500.0,0.00030684,2]
[319586923,1710883873000,-500.0,0.00030684,2]
[319586924,1710883873010,-2700.32,0.00030684,2]
[319586925,1710883873020,-500.0,0.00030684,2]
[319586926,1710883873030,-996.42,0.00030684,2]
[319586927,1710883873039,-573.99631047,0.00030684,2]
[319586928,1710883873052,-500.0,0.00030684,2]
[319586929,1710883873062,-500.0,0.00030684,2]
[319586930,1710883873071,-500.0,0.00030684,2]
[319586931,1710883873081,-500.0,0.00030684,2]
[319586932,1710883873090,-963.09,0.00030684,2]
[319586933,1710883873100,-708.23,0.00030684,2]
[319586934,1710883873109,-698.72,0.00030684,2]
[319586935,1710883873118,-500.0,0.00030684,2]
[319586936,1710883873130,-500.0,0.00030684,2]
[319586937,1710883873139,-1021.3,0.00030684,2]
[319586938,1710883873149,-535.49,0.00030684,2]
[319586939,1710883873158,-500.0,0.00030684,2]
[319586940,1710883873168,-500.0,0.00030684,2]
[319586941,1710883873178,-4097.82,0.00030684,2]
[319586942,1710883873187,-1107.96,0.00030684,2]
[319586943,1710883873199,-588.9,0.00030684,2]
[319586944,1710883873208,-500.0,0.00030684,2]
[319586945,1710883873218,-500.0,0.00030684,2]
[319586946,1710883873228,-500.0,0.00030684,2]
[319586947,1710883873237,-500.0,0.00030684,2]
[319586948,1710883873247,-678.64,0.00030684,2]
[319586949,1710883873257,-237.09362856,0.00030684,2]
[319586950,1710883873268,-500.0,0.00030684,2]
[319586951,1710883873277,-500.0,0.00030684,2]
[319586952,1710883873287,-500.0,0.00030684,2]
[319586953,1710883873296,-500.0,0.00030684,2]
[319586954,1710883873305,-685.69,0.00030684,2]
[319586955,1710883873315,-751.92,0.00030684,2]
[319586956,1710883873326,-2201.35,0.00030684,2]
[319586957,1710883873335,-1806.15,0.00030684,2]
[319586958,1710883873344,-500.0,0.00030684,2]
[319586959,1710883873354,-500.0,0.00030684,2]
[319586960,1710883873364,-1515.11,0.00030684,2]
[319586961,1710883873373,-1513.03,0.00030684,2]
[319586962,1710883873383,-500.0,0.00030684,2]
[319586963,1710883873392,-838.64,0.00030684,2]
[319586964,1710883873401,-500.0,0.00030684,2]
[319586965,1710883873411,-500.0,0.00030684,2]
[319586966,1710883873420,-693.29,0.00030684,2]
[319586967,1710883873430,-500.0,0.00030684,2]
[319586968,1710883873439,-4074.4,0.00030684,2]
[319586969,1710883873448,-603.07,0.00030684,2]
[319586970,1710883873457,-500.0,0.00030684,2]
[319586971,1710883873466,-638.83,0.00030684,2]
[319586972,1710883873476,-781.62,0.00030684,2]
[319586973,1710883873485,-500.0,0.00030684,2]
[319586974,1710883873494,-500.0,0.00030684,2]
[319586975,1710883873504,-417.56300365,0.00030684,2]
[319586976,1710883873515,-500.0,0.00030684,2]
[319586977,1710883873524,-1180.36,0.00030684,2]
[319586978,1710883873533,-1494.04,0.00030684,2]
[319586979,1710883873542,-691.03,0.00030684,2]
[319586980,1710883873552,-500.0,0.00030684,2]
[319586981,1710883873562,-500.0,0.00030684,2]
[319586982,1710883873572,-1058.59,0.00030684,2]
[319586983,1710883873581,-782.29,0.00030684,2]
[319586984,1710883873590,-500.0,0.00030684,2]
[319586985,1710883873599,-500.0,0.00030684,2]
[319586986,1710883873608,-2757.61,0.00030684,2]
[319586987,1710883873616,-1130.81,0.00030684,2]
[319586988,1710883873626,-934.19,0.00030684,2]
[319586989,1710883873635,-500.0,0.00030684,2]
[319586990,1710883873644,-502.71,0.00030684,2]
[319586991,1710883873653,-500.0,0.00030684,2]
[319586992,1710883873662,-626.57,0.00030684,2]
[319586993,1710883873671,-781.11,0.00030684,2]
[319586994,1710883873680,-505.09,0.00030684,2]
[319586995,1710883873689,-846.76,0.00030684,2]
[319586996,1710883873698,-912.33,0.00030684,2]
[319586997,1710883873707,-2582.04,0.00030684,2]
[319586998,1710883873717,-1278.95,0.00030684,2]
[319586999,1710883873726,-500.0,0.00030684,2]
[319587000,1710883873735,-151.0,0.00030684,7]
[319587001,1710883873745,-1020.62,0.00030684,2]
[319587002,1710883873755,-151.0,0.00030684,7]
[319587003,1710883873767,-1074.07,0.00030684,2]
[319587004,1710883873776,-500.0,0.00030684,2]
[319587005,1710883873785,-500.0,0.00030684,2]
[319587006,1710883873795,-1342.47,0.00030684,2]
[319587007,1710883873805,-500.0,0.00030684,2]
[319587008,1710883873815,-859.38,0.00030684,2]
[319587009,1710883873825,-869.06,0.00030684,2]
[319587010,1710883873834,-500.0,0.00030684,2]
[319587011,1710883873844,-500.0,0.00030684,2]
[319587012,1710883873855,-567.85,0.00030684,2]
[319587013,1710883873866,-500.0,0.00030684,2]
[319587014,1710883873876,-500.0,0.00030684,2]
[319587015,1710883873886,-500.0,0.00030684,2]
[319587016,1710883873895,-540.58,0.00030684,2]
[319587017,1710883873905,-691.28,0.00030684,2]
[319587018,1710883873914,-500.0,0.00030684,2]
[319587019,1710883873923,-1048.73,0.00030684,2]
[319587020,1710883874051,-731.41,0.00030684,2]
[319587021,1710883874061,-1662.72,0.00030684,2]
[319587022,1710883874070,-795.79,0.00030684,2]
[319587023,1710883874079,-500.0,0.00030684,2]
[319587024,1710883874089,-529.2043516,0.00030684,2]
[319587025,1710883874098,-500.0,0.00030684,2]
[319587026,1710883874115,-863.23,0.00030684,2]
[319587027,1710883874125,-1377.63,0.00030684,2]
[319587028,1710883874135,-1320.23,0.00030684,2]
[319587029,1710883874144,-500.0,0.00030684,2]
[319587030,1710883874154,-2750.0,0.00030684,2]
[319587031,1710883874164,-500.0,0.00030684,2]
[319587032,1710883874173,-150.0,0.00030684,2]
[319587033,1710883874182,-493.48004139,0.00030684,2]
[319587034,1710883874192,-500.0,0.00030684,2]
[319587035,1710883874202,-852.1,0.00030684,2]
[319587036,1710883874212,-500.0,0.00030684,2]
[319587037,1710883874221,-500.0,0.00030684,2]
[319587038,1710883874230,-500.0,0.00030684,2]
[319587039,1710883874240,-500.0,0.00030684,2]
[319587040,1710883874250,-500.0,0.00030684,2]
[319587041,1710883874259,-2264.1,0.00030684,2]
[319587042,1710883874269,-5000.0,0.00030684,2]
[319587043,1710883874278,-587.09935055,0.00030684,2]
[319587044,1710883874287,-500.0,0.00030684,2]
[319587045,1710883874296,-484.43471021,0.00030684,2]
[319587046,1710883874306,-533.15,0.00030684,2]
[319587047,1710883874316,-500.0,0.00030684,2]
[319587048,1710883874325,-590.4,0.00030684,2]
[319587049,1710883874334,-768.62,0.00030684,2]
[319587050,1710883874344,-813.65,0.00030684,2]
[319587051,1710883874354,-1706.37,0.00030684,2]
[319587052,1710883874363,-500.0,0.00030684,2]
[319587053,1710883874373,-710.02,0.00030684,2]
[319587054,1710883874381,-951.49,0.00030684,2]
[319587055,1710883874391,-610.69829481,0.00030684,2]
[319587056,1710883874400,-624.42,0.00030684,2]
[319587057,1710883874411,-500.0,0.00030684,2]
[319587058,1710883874420,-500.0,0.00030684,2]
[319587059,1710883874429,-500.0,0.00030684,2]
[319587060,1710883874439,-500.0,0.00030684,2]
[319587061,1710883874448,-574.84781107,0.00030684,2]
[319587062,1710883874458,-500.0,0.00030684,2]
[319587063,1710883874468,-1083.59,0.00030684,2]
[319587064,1710883874477,-1353.58,0.00030684,2]
[319587065,1710883874487,-500.0,0.00030684,2]
[319587066,1710883874500,-500.0,0.00030684,2]
[319587067,1710883874509,-851.26,0.00030684,2]